fUSD/lending_fUSD_20260422
["ID","MTS","AMOUNT","RATE_DAILY","PERIOD"]
[420973591,1776837049093,-500.0,0.00010362,2]
[420973592,1776837049103,-500.0,0.00010362,2]
[420973593,1776837049112,-500.0,0.00010362,2]
[420973594,1776837049122,-500.0,0.00010362,2]
[420973595,1776837049131,-500.0,0.00010362,2]
[420973596,1776837049140,-500.0,0.00010362,2]
[420973597,1776837049150,-500.0,0.00010362,2]
[420973598,1776837049159,-500.0,0.00010362,2]
[420973599,1776837049168,-500.0,0.00010362,2]
[420973600,1776837049177,-500.0,0.00010362,2]
[420973601,1776837049187,-500.0,0.00010362,2]
[420973602,1776837049196,-500.0,0.00010362,2]
[420973603,1776837049206,-506.81137002,0.00010362,2]
[420973604,1776837049215,-150.0,0.00010368,2]
[420973605,1776837049224,-150.0,0.00010384,2]
[420973606,1776837049234,-155.75935157,0.00010384,2]
[420973607,1776837049243,-153.23295601,0.00010384,2]
[420973608,1776837049252,-150.00000001,0.00010384,2]
[420973609,1776837049261,-153.95685762,0.00010384,2]
[420973610,1776837049271,-169.65065717,0.00010384,2]
[420973611,1776837049280,-186.67368104,0.00010384,2]
[420973612,1776837049289,-157.71504807,0.00010384,2]
[420973613,1776837049299,-207.21622478,0.00010384,2]
[420973614,1776837049308,-278.70216768,0.00010384,2]
[420973615,1776837049318,-239.87337831,0.00010384,2]
[420973616,1776837049327,-151.0,0.00010387,2]
[420973617,1776837049336,-151.0,0.00010387,2]
[420973618,1776837049346,-500.0,0.00010438,2]
[420973619,1776837049355,-433.0,0.00010595,2]
[420973620,1776837049364,-285.14,0.00010749,2]
[420973621,1776837049374,-3292.0,0.00010767,2]
[420973622,1776837049383,-3074.0,0.000108,3]
[420973623,1776837049392,-151.0,0.00010877,2]
[420973624,1776837049402,-151.0,0.00010877,2]
[420973625,1776837049411,-228.390823,0.00010877,2]
[420973626,1776837049421,-228.390823,0.00010877,2]
[420973627,1776837049430,-228.390823,0.00010877,2]
[420973628,1776837049439,-228.390823,0.00010877,2]
[420973629,1776837049448,-6325.49085994,0.00010877,2]
[420973630,1776837049457,-5000.0,0.00010877,2]
[420973631,1776837049467,-5000.0,0.00010877,2]
[420973632,1776837049476,-5000.0,0.00010877,2]
[420973633,1776837049486,-5000.0,0.00010877,2]
[420973634,1776837049496,-500.0,0.00010959,2]
[420973635,1776837049505,-150.0,0.00010959,2]
[420973636,1776837049514,-150.0,0.00010959,2]
[420973637,1776837049524,-384.06,0.00011,2]
[420973638,1776837049532,-156.22,0.00011,2]
[420973639,1776837049542,-4352.21737827,0.00011099,2]
[420973640,1776837049551,-4352.2173782,0.00011099,2]
[420973641,1776837049560,-4352.2173782,0.00011099,2]
[420973642,1776837049569,-4352.2173782,0.00011099,2]
[420973643,1776837049578,-4352.2173782,0.00011099,2]
[420973644,1776837049587,-4352.2173782,0.00011099,2]
[420973645,1776837049597,-4352.2173782,0.00011099,2]
[420973646,1776837049606,-434.869357,0.00011099,2]
[420973647,1776837049615,-434.869357,0.00011099,2]
[420973648,1776837049625,-434.869357,0.00011099,2]
[420973649,1776837049635,-434.869357,0.00011099,2]
[420973650,1776837049644,-5529.0,0.000111,5]
[420973651,1776837049653,-296.394971,0.00011162,2]
[420973652,1776837049662,-254.000302,0.00011176,2]
[420973653,1776837049671,-4352.2173782,0.00011211,2]
[420973654,1776837049681,-1048.0,0.00011212,2]
[420973655,1776837049691,-1265.0,0.00011212,2]
[420973656,1776837049700,-6031.0,0.00011212,2]
[420973657,1776837049709,-3691.556,0.00011212,2]
[420973658,1776837049718,-416.923,0.00011212,2]
[420973659,1776837049727,-2196.74,0.00011232,2]
[420973660,1776837049736,-188.793234,0.0001127,2]
[420973661,1776837049746,-578.20924308,0.00011367,2]
[420973662,1776837049755,-9552.16786547,0.00011367,2]
[420973663,1776837049764,-1428.38747117,0.00011367,2]
[420973664,1776837049774,-721.12765535,0.00011367,2]
[420973665,1776837050140,-2000.0,0.00011367,2]
[420973666,1776837050149,-2000.0,0.00011367,2]
[420973667,1776837050159,-181.0801015,0.00011367,2]
[420973668,1776837050169,-190.60783339,0.00011367,2]
[420973669,1776837050179,-151.0,0.00011422,2]
[420973670,1776837050188,-151.0,0.00011422,2]
[420973671,1776837050198,-228.390823,0.00011422,2]
[420973672,1776837050207,-228.390823,0.00011422,2]
[420973673,1776837050216,-228.390823,0.00011422,2]
[420973674,1776837050227,-228.390823,0.00011422,2]
[420973675,1776837050237,-9905.5980765,0.00011422,2]
[420973676,1776837050247,-151.0,0.00011425,2]
[420973677,1776837050257,-235.25320131,0.00011477,2]
[420973678,1776837050267,-4231.32,0.00011507,2]
[420973679,1776837050276,-4352.2173782,0.00011556,2]
[420973680,1776837050286,-2500.0,0.000116,4]
[420973681,1776837050295,-183.38,0.00011644,2]
[420973682,1776837050304,-392.61,0.00011647,2]
[420973683,1776837050314,-257.0,0.00011655,2]
[420973684,1776837050323,-285.14,0.00011658,2]
[420973685,1776837050332,-2384.0,0.00011671,2]
[420973686,1776837050341,-4161.035,0.00011672,2]
[420973687,1776837050351,-259.848,0.00011672,2]
[420973688,1776837050360,-3200.0,0.000117,4]
[420973689,1776837050369,-184.98074801,0.0001176,2]
[420973690,1776837050379,-600.0,0.000118,4]
[420973691,1776837050388,-2243.30111532,0.0001182,2]
[420973692,1776837050397,-595.39,0.00011838,2]
[420973693,1776837050407,-476.09,0.00011841,2]
[420973694,1776837050416,-1274.0,0.00011844,2]
[420973695,1776837050425,-249.79,0.00011846,2]
[420973696,1776837050434,-227.31394,0.0001188,2]
[420973697,1776837050443,-227.31393,0.0001188,2]
[420973698,1776837050452,-9008.0189,0.000119,2]
[420973699,1776837050462,-397.3924806,0.000119,2]
[420973700,1776837050472,-8666.23160968,0.000119,2]
[420973701,1776837050481,-4352.2173782,0.000119,2]
[420973702,1776837050490,-600.0,0.000119,4]
[420973703,1776837050500,-155.1779469,0.000119,2]
[420973704,1776837050509,-155.17794689,0.000119,2]
[420973705,1776837050518,-155.17794689,0.000119,2]
[420973706,1776837050527,-644.37141316,0.000119,2]
[420973707,1776837050537,-155.17794689,0.000119,2]
[420973708,1776837050546,-155.17794689,0.000119,2]
[420973709,1776837050555,-155.17794689,0.000119,2]
[420973710,1776837050565,-155.17794689,0.000119,2]
[420973711,1776837050574,-155.17794689,0.000119,2]
[420973712,1776837050583,-155.17794689,0.000119,2]
[420973713,1776837050592,-218.19190833,0.000119,2]
[420973714,1776837050602,-155.17794689,0.000119,2]
[420973715,1776837050611,-155.17794689,0.000119,2]
[420973716,1776837050620,-3434.88192028,0.000119,2]
[420973717,1776837050629,-200.0,0.00011903,2]
[420973718,1776837050639,-200.0,0.00011904,2]
[420973719,1776837050648,-200.0,0.00011904,2]
[420973720,1776837050657,-1481.23780761,0.00011915,2]
[420973721,1776837050667,-250.0,0.00011934,2]
[420973722,1776837050676,-387.52057,0.00011973,2]
[420973723,1776837050685,-387.52057,0.00011973,2]
[420973724,1776837050695,-387.52057,0.00011973,2]
[420973725,1776837050704,-387.52057,0.00011973,2]
[420973726,1776837050713,-387.52057,0.00011973,2]
[420973727,1776837050722,-387.52057,0.00011973,2]
[420973728,1776837050731,-387.52057,0.00011973,2]
[420973729,1776837050740,-387.52057,0.00011973,2]
[420973730,1776837050750,-151.0,0.00011986,2]
[420973731,1776837050759,-300.0,0.00011988,2]
[420973732,1776837050768,-4946.2013597,0.00011989,2]
[420973733,1776837050778,-26685.9564736,0.00011989,2]
[420973734,1776837050788,-98739.4989474,0.00011989,2]
[420973735,1776837050797,-151.205228,0.00011989,2]
[420973736,1776837050807,-4456.5920132,0.00011989,2]
[420973737,1776837050817,-1514.126261,0.00011989,2]
[420973738,1776837050826,-151.0,0.00011989,2]
[420973739,1776837050836,-151.0,0.00011989,2]
[420973740,1776837050846,-907.2740032,0.00011989,2]
[420973741,1776837050855,-151.0,0.00011989,2]
[420973742,1776837050864,-18869.8940666,0.00011989,2]
[420973743,1776837050874,-434.869357,0.00011989,2]
[420973744,1776837050883,-434.869357,0.00011989,2]
[420973745,1776837050893,-434.869357,0.00011989,2]
[420973746,1776837050903,-434.869357,0.00011989,2]
[420973747,1776837050913,-151.0,0.00011989,2]
[420973748,1776837050922,-387.52057,0.00011989,2]
[420973749,1776837050931,-387.52057,0.00011989,2]
[420973750,1776837050942,-387.52057,0.00011989,2]
[420973751,1776837050951,-387.52057,0.00011989,2]
[420973752,1776837050960,-228.390823,0.00011989,2]
[420973753,1776837050970,-228.390823,0.00011989,2]
[420973754,1776837050979,-228.390823,0.00011989,2]
[420973755,1776837050988,-2014.392855,0.00011989,2]
[420973756,1776837050997,-228.390823,0.00011989,2]
[420973757,1776837051006,-188.08063808,0.0001199,2]
[420973758,1776837051015,-247.81199177,0.00011997,2]
[420973759,1776837051024,-151.0,0.00011997,2]
[420973760,1776837051034,-304.58099633,0.00011999,2]
[420973761,1776837051043,-541992.5662815,0.00012,2]
[420973762,1776837051052,-355317.9808521,0.00012,2]
[420973763,1776837051062,-946497.13122369,0.00012,2]
[420973764,1776837051071,-20318.69227304,0.00012,2]
[420973765,1776837224917,10000.0,0.000165,30]
[420973766,1776837233818,10000.0,0.000165,30]
[420973767,1776837242091,10000.0,0.000165,30]
[420973768,1776837248116,10000.0,0.000165,30]
[420973769,1776837257555,1747.0,0.000165,30]
[420973789,1776838231830,-252.0,7.766e-05,2]
[420973792,1776838231841,-165.76535848,7.766e-05,2]
[420973795,1776838231851,-122.64240444,7.767e-05,2]
[420973799,1776838231863,-127.35759556,7.767e-05,2]
[420973802,1776838231873,-150.0,7.767e-05,2]
[420973804,1776838231882,-45.97165894,7.767e-05,2]
[420973807,1776838231902,-104.02834106,7.767e-05,2]
[420973809,1776838231911,-150.0,7.767e-05,2]
[420973810,1776838231920,-150.0,7.767e-05,2]
[420973811,1776838231930,-150.0,7.767e-05,2]
[420973812,1776838231941,-150.00000001,7.767e-05,2]
[420973813,1776838231950,-150.0,7.767e-05,2]
[420973814,1776838231960,-178.29441599,7.767e-05,2]
[420973815,1776838231970,-1391.75619645,7.767e-05,2]
[420973816,1776838231981,-264.00221638,7.767e-05,2]
[420973817,1776838231993,-1476.8425686,7.767e-05,2]
[420973818,1776838232003,-250.0,7.772e-05,2]
[420973819,1776838232012,-178.29441599,7.776e-05,2]
[420973820,1776838232022,-178.29441599,7.785e-05,2]
[420973821,1776838232031,-178.29441599,7.793e-05,2]
[420973822,1776838232041,-178.29441599,7.802e-05,2]
[420973823,1776838232051,-111.09002182,7.811e-05,2]
[420973824,1776838232063,-67.20439417,7.811e-05,2]
[420973825,1776838232073,-178.29441599,7.819e-05,2]
[420973826,1776838232082,-178.29441599,7.828e-05,2]
[420973827,1776838232092,-178.29441599,7.837e-05,2]
[420973828,1776838232103,-178.29441599,7.846e-05,2]
[420973829,1776838232112,-178.29441599,7.854e-05,2]
[420973830,1776838232122,-1939.0,7.861e-05,2]
[420973831,1776838232131,-96.20407461,7.863e-05,2]
[420973832,1776838232143,-82.09034138,7.863e-05,2]
[420973833,1776838232152,-690.98348344,7.863e-05,4]
[420973835,1776838232164,-254.14013485,7.863e-05,4]
[420973836,1776838232176,-176.21049892,7.863e-05,4]
[420973837,1776838232185,-193.77882107,7.863e-05,4]
[420973838,1776838232205,-479.02164926,7.863e-05,4]
[420973840,1776838232214,-448.53364688,7.863e-05,4]
[420973842,1776838232224,-178.29441599,7.872e-05,2]
[420973844,1776838232233,-526.85984034,7.876e-05,2]
[420973846,1776838232245,-652.14015966,7.876e-05,2]
[420973848,1776838232254,-178.29441599,7.88e-05,2]
[420973850,1776838232264,-178.29441599,7.889e-05,2]
[420973852,1776838232273,-178.29441599,7.898e-05,2]
[420973854,1776838232283,-178.29441599,7.907e-05,2]
[420973856,1776838232293,-178.29441599,7.915e-05,2]
[420973858,1776838232303,-178.29441599,7.924e-05,2]
[420973861,1776838232313,-178.29441599,7.933e-05,2]
[420973862,1776838232322,-178.29441599,7.941e-05,2]
[420973864,1776838232331,-178.29441599,7.95e-05,2]
[420973865,1776838232341,-178.29441599,7.959e-05,2]
[420973866,1776838232350,-178.29441599,7.968e-05,2]
[420973867,1776838232360,-178.29441599,7.976e-05,2]
[420973868,1776838232369,-9.29345994,7.985e-05,2]
[420973869,1776838232389,-169.00095605,7.985e-05,2]
[420973870,1776838232399,-178.29441599,7.994e-05,2]
[420973871,1776838232408,-178.29441599,8.002e-05,2]
[420973872,1776838232417,-178.29441599,8.011e-05,2]
[420973873,1776838232427,-178.29441599,8.02e-05,2]
[420973874,1776838232436,-178.29441599,8.029e-05,2]
[420973875,1776838232446,-178.29441599,8.037e-05,2]
[420973876,1776838232455,-178.29441599,8.046e-05,2]
[420973877,1776838232464,-178.29441599,8.055e-05,2]
[420973878,1776838232473,-40.008596,8.064e-05,2]
[420973879,1776838232485,-138.28581999,8.064e-05,2]
[420973880,1776838232494,-119.58938001,8.072e-05,2]
[420973881,1776838232505,-58.70503598,8.072e-05,2]
[420973882,1776838232515,-178.29441599,8.081e-05,2]
[420973883,1776838232524,-178.29441599,8.09e-05,2]
[420973884,1776838232534,-178.29441599,8.098e-05,2]
[420973885,1776838232544,-178.29441599,8.107e-05,2]
[420973886,1776838232554,-178.29441599,8.116e-05,2]
[420973887,1776838232564,-178.29441599,8.125e-05,2]
[420973888,1776838232574,-178.29441599,8.133e-05,2]
[420973889,1776838232584,-178.29441599,8.142e-05,2]
[420973890,1776838232595,-178.29441599,8.151e-05,2]
[420973891,1776838232604,-178.29441599,8.159e-05,2]
[420973892,1776838232614,-178.29441599,8.168e-05,2]
[420973893,1776838232624,-178.29441599,8.177e-05,2]
[420973894,1776838232633,-178.29441599,8.186e-05,2]
[420973895,1776838232642,-178.29441599,8.194e-05,2]
[420973896,1776838232652,-178.29441599,8.203e-05,2]
[420973897,1776838232663,-178.29441599,8.212e-05,2]
[420973898,1776838232673,-500.0,8.219e-05,2]
[420973899,1776838232683,-178.29441599,8.22e-05,2]
[420973900,1776838232692,-178.29441599,8.229e-05,2]
[420973901,1776838232702,-178.29441599,8.238e-05,2]
[420973902,1776838232711,-178.29441599,8.247e-05,2]
[420973903,1776838232721,-178.29441599,8.255e-05,2]
[420973904,1776838232731,-178.29441599,8.264e-05,2]
[420973905,1776838232741,-178.29441599,8.273e-05,2]
[420973906,1776838232751,-178.29441599,8.281e-05,2]
[420973907,1776838232761,-178.29441599,8.29e-05,2]
[420973908,1776838232770,-178.29441599,8.299e-05,2]
[420973909,1776838232780,-178.29441599,8.308e-05,2]
[420973910,1776838232790,-178.29441599,8.316e-05,2]
[420973911,1776838232800,-832.66026,8.321e-05,2]
[420973912,1776838232810,-390.9496,8.321e-05,2]
[420973913,1776838232820,-1181.986534,8.321e-05,2]
[420973914,1776838232831,-178.29441599,8.325e-05,2]
[420973915,1776838232840,-178.29441599,8.334e-05,2]
[420973916,1776838232850,-178.29441599,8.342e-05,2]
[420973917,1776838232860,-178.29441599,8.351e-05,2]
[420973918,1776838232871,-178.29441599,8.36e-05,2]
[420973919,1776838232881,-178.29441599,8.369e-05,2]
[420973920,1776838232891,-178.29441599,8.377e-05,2]
[420973921,1776838232902,-178.29441599,8.386e-05,2]
[420973922,1776838232912,-178.29441599,8.395e-05,2]
[420973923,1776838232923,-178.29441599,8.403e-05,2]
[420973924,1776838232934,-199.27,8.407e-05,2]
[420973925,1776838232945,-178.29441599,8.412e-05,2]
[420973926,1776838232955,-178.29441599,8.421e-05,2]
[420973927,1776838232965,-178.29441599,8.43e-05,2]
[420973928,1776838232975,-178.29441599,8.438e-05,2]
[420973929,1776838232986,-178.29441599,8.447e-05,2]
[420973930,1776838232996,-178.29441599,8.456e-05,2]
[420973931,1776838233006,-178.29441599,8.465e-05,2]
[420973932,1776838233016,-178.29441599,8.473e-05,2]
[420973933,1776838233026,-178.29441599,8.482e-05,2]
[420973934,1776838233035,-178.29441599,8.491e-05,2]
[420973935,1776838233046,-500.0,8.493e-05,2]
[420973936,1776838233057,-178.29441599,8.499e-05,2]
[420973937,1776838233067,-178.29441599,8.508e-05,2]
[420973938,1776838233076,-178.29441599,8.517e-05,2]
[420973939,1776838233086,-178.29441599,8.526e-05,2]
[420973940,1776838233096,-178.29441599,8.534e-05,2]
[420973941,1776838233105,-250.0,8.543e-05,2]
[420973942,1776838233115,-300.0,8.543e-05,2]
[420973943,1776838233125,-5000.0,8.543e-05,2]
[420973944,1776838233134,-193.0,8.543e-05,2]
[420973945,1776838233144,-300.0,8.543e-05,2]
[420973946,1776838233155,-178.29441599,8.543e-05,2]
[420973947,1776838233166,-178.29441599,8.552e-05,2]
[420973948,1776838233176,-269.5736,8.555e-05,2]
[420973949,1776838233186,-500.0,8.556e-05,2]
[420973950,1776838233196,-349.59067719,8.556e-05,2]
[420973951,1776838233205,-4157.4482,8.557e-05,2]
[420973952,1776838233214,-29319.3385,8.557e-05,2]
[420973953,1776838233224,-2500.0,8.557e-05,2]
[420973954,1776838233233,-178.29441599,8.56e-05,2]
[420973955,1776838233242,-178.29441599,8.569e-05,2]
[420973956,1776838233251,-178.29441599,8.578e-05,2]
[420973957,1776838233260,-178.29441599,8.587e-05,2]
[420973958,1776838233270,-178.29441599,8.595e-05,2]
[420973959,1776838233281,-178.29441599,8.604e-05,2]
[420973960,1776838233290,-178.29441599,8.613e-05,2]
[420973961,1776838233299,-178.29441599,8.621e-05,2]
[420973962,1776838233309,-256.26351018,8.63e-05,2]
[420973963,1776838233318,-5778.53,8.63e-05,2]
[420973964,1776838233327,-150.0,8.63e-05,2]
[420973965,1776838233336,-150.0,8.63e-05,2]
[420973966,1776838233345,-178.29441599,8.63e-05,2]
[420973967,1776838233355,-160.35239601,8.633e-05,2]
[420973968,1776838233364,-500.0,8.633e-05,2]
[420973969,1776838233373,-500.0,8.633e-05,2]
[420973970,1776838233383,-577.20212446,8.633e-05,2]
[420973971,1776838233392,-164.02320448,8.633e-05,2]
[420973972,1776838233401,-500.0,8.633e-05,2]
[420973973,1776838233410,-500.0,8.633e-05,2]
[420973974,1776838233419,-261.869,8.657e-05,2]
[420973975,1776838233428,-4151.581,8.657e-05,2]
[420973976,1776838233437,-211.33,8.665e-05,2]
[420973977,1776838233446,-1049.21297137,8.665e-05,2]
[420973978,1776838233455,-500.0,8.999e-05,2]
[420973979,1776838233465,-500.0,8.999e-05,2]
[420973980,1776838233474,-201.64683475,8.999e-05,2]
[420973981,1776838233483,-210.94279112,8.999e-05,2]
[420973982,1776838233492,-500.0,8.999e-05,2]
[420973983,1776838233501,-500.0,8.999e-05,2]
[420973984,1776838233510,-508.96085053,8.999e-05,2]
[420973985,1776838233520,-432.14599824,8.999e-05,2]
[420973986,1776838233529,-500.0,8.999e-05,2]
[420973987,1776838233538,-500.0,8.999e-05,2]
[420973988,1776838233547,-500.0,8.999e-05,2]
[420973989,1776838233556,-500.0,8.999e-05,2]
[420973990,1776838233566,-500.0,8.999e-05,2]
[420973991,1776838233575,-500.0,8.999e-05,2]
[420973992,1776838233585,-500.0,8.999e-05,2]
[420973993,1776838233594,-500.0,8.999e-05,2]
[420973994,1776838233603,-500.0,8.999e-05,2]
[420973995,1776838233612,-500.0,8.999e-05,2]
[420973996,1776838233621,-500.0,8.999e-05,2]
[420973997,1776838233631,-500.0,8.999e-05,2]
[420973998,1776838233641,-500.0,8.999e-05,2]
[420973999,1776838233651,-500.0,8.999e-05,2]
[420974000,1776838233661,-500.0,8.999e-05,2]
[420974001,1776838234119,-294.11632961,8.999e-05,2]
[420974002,1776838234132,-212.87673504,8.999e-05,2]
[420974003,1776838234142,-593.84438481,8.999e-05,2]
[420974004,1776838234151,-500.0,8.999e-05,2]
[420974005,1776838234161,-500.0,8.999e-05,2]
[420974006,1776838234171,-500.0,8.999e-05,2]
[420974007,1776838234181,-500.0,8.999e-05,2]
[420974008,1776838234191,-500.0,8.999e-05,2]
[420974009,1776838234200,-500.0,8.999e-05,2]
[420974010,1776838234209,-500.0,8.999e-05,2]
[420974011,1776838234219,-500.0,8.999e-05,2]
[420974012,1776838234228,-500.0,8.999e-05,2]
[420974013,1776838234237,-500.0,8.999e-05,2]
[420974014,1776838234246,-500.0,8.999e-05,2]
[420974015,1776838234256,-500.0,8.999e-05,2]
[420974016,1776838234265,-500.0,8.999e-05,2]
[420974017,1776838234274,-500.0,8.999e-05,2]
[420974018,1776838234284,-500.0,8.999e-05,2]
[420974019,1776838234293,-500.0,8.999e-05,2]
[420974020,1776838234302,-500.0,8.999e-05,2]
[420974021,1776838234311,-500.0,8.999e-05,2]
[420974022,1776838234320,-500.0,8.999e-05,2]
[420974023,1776838234330,-500.0,8.999e-05,2]
[420974024,1776838234338,-500.0,8.999e-05,2]
[420974025,1776838234348,-500.0,8.999e-05,2]
[420974026,1776838234357,-500.0,8.999e-05,2]
[420974027,1776838234367,-500.0,8.999e-05,2]
[420974028,1776838234376,-500.0,8.999e-05,2]
[420974029,1776838234385,-500.0,8.999e-05,2]
[420974030,1776838234393,-500.0,8.999e-05,2]
[420974031,1776838234403,-500.0,8.999e-05,2]
[420974032,1776838234413,-500.0,8.999e-05,2]
[420974033,1776838234423,-500.0,8.999e-05,2]
[420974034,1776838234432,-500.0,8.999e-05,2]
[420974035,1776838234441,-500.0,8.999e-05,2]
[420974036,1776838234450,-500.0,8.999e-05,2]
[420974037,1776838234459,-500.0,8.999e-05,2]
[420974038,1776838234469,-500.0,8.999e-05,2]
[420974039,1776838234478,-500.0,8.999e-05,2]
[420974040,1776838234488,-500.0,8.999e-05,2]
[420974041,1776838234498,-500.0,8.999e-05,2]
[420974042,1776838234507,-500.0,8.999e-05,2]
[420974043,1776838234516,-500.0,8.999e-05,2]
[420974044,1776838234525,-500.0,8.999e-05,2]
[420974045,1776838234535,-500.0,8.999e-05,2]
[420974046,1776838234544,-500.0,8.999e-05,2]
[420974047,1776838234553,-600.0,8.999e-05,2]
[420974048,1776838234564,-500.0,8.999e-05,2]
[420974049,1776838234573,-500.0,8.999e-05,2]
[420974050,1776838234582,-500.0,8.999e-05,2]
[420974051,1776838234591,-500.0,8.999e-05,2]
[420974052,1776838234601,-500.0,8.999e-05,2]
[420974053,1776838234610,-500.0,8.999e-05,2]
[420974054,1776838234619,-500.0,8.999e-05,2]
[420974055,1776838234628,-500.0,8.999e-05,2]
[420974056,1776838234638,-500.0,8.999e-05,2]
[420974057,1776838234647,-500.0,8.999e-05,2]
[420974058,1776838234656,-500.0,8.999e-05,2]
[420974059,1776838234666,-500.0,8.999e-05,2]
[420974060,1776838234676,-500.0,8.999e-05,2]
[420974061,1776838234685,-500.0,8.999e-05,2]
[420974062,1776838234694,-500.0,8.999e-05,2]
[420974063,1776838234704,-500.0,8.999e-05,2]
[420974064,1776838234713,-500.0,8.999e-05,2]
[420974065,1776838234722,-500.0,8.999e-05,2]
[420974066,1776838234731,-500.0,8.999e-05,2]
[420974067,1776838234741,-500.0,8.999e-05,2]
[420974068,1776838234750,-500.0,8.999e-05,2]
[420974069,1776838234759,-500.0,8.999e-05,2]
[420974070,1776838234770,-400.0,8.999e-05,2]
[420974071,1776838234779,-500.0,8.999e-05,2]
[420974072,1776838234789,-500.0,8.999e-05,2]
[420974073,1776838234798,-500.0,8.999e-05,2]
[420974074,1776838234807,-25877.31066579,9.149e-05,2]
[420974075,1776838234817,-500.0,9.181e-05,2]
[420974076,1776838234826,-506.35109511,9.181e-05,2]
[420974077,1776838234835,-167.76,9.345e-05,2]
[420974078,1776838234845,-20173.17,9.487e-05,2]
[420974079,1776838234855,-500.0,9.518e-05,2]
[420974080,1776838234864,-283.06637302,9.518e-05,2]
[420974081,1776838234874,-1925.05,0.0001,2]
[420974082,1776838234883,-481.25,0.0001,2]
[420974083,1776838234892,-481.25,0.0001,2]
[420974084,1776838234901,-775.61692037,0.0001,2]
[420974085,1776838234911,-481.25,0.0001,2]
[420974086,1776838234921,-481.25,0.0001,2]
[420974087,1776838234930,-194.53947561,0.0001,2]
[420974088,1776838234939,-151.0,0.0001,2]
[420974089,1776838234949,-232.1486567,0.0001,2]
[420974090,1776838234958,-500.0,0.0001,2]
[420974091,1776838234968,-500.0,0.0001,2]
[420974092,1776838234977,-500.0,0.0001,2]
[420974093,1776838234987,-500.0,0.0001,2]
[420974094,1776838234996,-500.0,0.0001,2]
[420974095,1776838235006,-255.67978247,0.0001,2]
[420974096,1776838235015,-500.0,0.0001,2]
[420974097,1776838235025,-287.65459605,0.0001,2]
[420974098,1776838235034,-160.0,0.00010142,2]
[420974099,1776838235044,-194.53947561,0.00010233,2]
[420974100,1776838235054,-4274.79,0.000103,2]
[420974101,1776838235064,-2303.81,0.00010314,2]
[420974102,1776838235074,-151.0,0.00010376,2]
[420974103,1776838235083,-223.76263783,0.00010529,2]
[420974104,1776838235093,-80785.64552712,0.000107,2]
[420974105,1776838236809,-4999.24330118,0.000107,2]
[420974106,1776838236821,-83356.74605977,0.000107,2]
[420974107,1776838236832,-1309.68764366,0.000107,2]
[420974108,1776838236844,-4675.92415367,0.000107,2]
[420974109,1776838236855,-326.03172292,0.000107,2]
[420974110,1776838236866,-267.37735194,0.000107,2]
[420974111,1776838236906,-1295.9148631,0.000107,2]
[420974123,1776838238083,-1222.12293849,0.000107,2]
[420974125,1776838238185,-981.27320347,0.000107,2]
[420974199,1776838240355,-11470.26924953,0.000107,2]
[420974200,1776838240515,-1005.70823885,0.000107,2]
[420974201,1776838240570,-113181.22899181,0.000107,2]
[420974202,1776838240580,-151.0,0.000107,2]
[420974203,1776838240589,-151.0,0.000107,2]
[420974204,1776838240598,-151.0,0.000107,2]
[420974205,1776838240607,-260.921614,0.000107,2]
[420974206,1776838240616,-260.921614,0.000107,2]
[420974207,1776838240625,-260.921614,0.000107,2]
[420974208,1776838240635,-260.921614,0.000107,2]
[420974209,1776838240644,-151.11,0.00010814,2]
[420974210,1776838240653,-1600.0,0.0001086,2]
[420974211,1776838240663,-285.13,0.00010878,2]
[420974212,1776838240672,-500.7524424,0.00010959,2]
[420974213,1776838240682,-151.0,0.00010959,2]
[420974214,1776838240691,-151.0,0.00010959,2]
[420974215,1776838240700,-803.2,0.00011,2]
[420974216,1776838240710,-472.91,0.00011087,2]
[420974217,1776838240719,-354.98,0.0001109,2]
[420974218,1776838240728,-300.0,0.00011098,2]
[420974219,1776838240738,-7799.6084488,0.00011099,2]
[420974220,1776838240747,-7799.60844871,0.00011099,2]
[420974221,1776838240756,-7799.60844871,0.00011099,2]